fUST/lending_fUST_20251203
["ID","MTS","AMOUNT","RATE_DAILY","PERIOD"]
[395695410,1764717048104,-500.0,0.00013698,2]
[395695412,1764717048114,-500.0,0.00013698,2]
[395695414,1764717048123,-500.0,0.00013698,2]
[395695416,1764717048132,-500.0,0.00013698,2]
[395695418,1764717048141,-500.0,0.00013698,2]
[395695420,1764717048151,-500.0,0.00013698,2]
[395695422,1764717048160,-500.0,0.00013698,2]
[395695424,1764717048169,-684.22,0.00013698,2]
[395695426,1764717048179,-500.0,0.00013698,2]
[395695428,1764717048187,-500.0,0.00013698,2]
[395695430,1764717048197,-589.35,0.00013698,2]
[395695432,1764717048207,-500.0,0.00013698,2]
[395695434,1764717048217,-500.0,0.00013698,2]
[395695436,1764717048227,-500.0,0.00013698,2]
[395695438,1764717048237,-500.0,0.00013698,2]
[395695440,1764717048246,-500.0,0.00013698,2]
[395695442,1764717048256,-668.32,0.00013698,2]
[395695444,1764717048265,-500.0,0.00013698,2]
[395695446,1764717048275,-500.0,0.00013698,2]
[395695448,1764717048284,-500.0,0.00013698,2]
[395695450,1764717048293,-500.0,0.00013698,2]
[395695452,1764717048304,-656.72,0.00013698,2]
[395695454,1764717048314,-500.0,0.00013698,2]
[395695456,1764717048324,-500.0,0.00013698,2]
[395695458,1764717048337,-500.0,0.00013698,2]
[395695460,1764717048348,-500.0,0.00013698,2]
[395695462,1764717048358,-500.0,0.00013698,2]
[395695464,1764717048368,-500.0,0.00013698,2]
[395695466,1764717048379,-500.0,0.00013698,2]
[395695468,1764717048389,-500.0,0.00013698,2]
[395695469,1764717048399,-500.0,0.00013698,2]
[395695471,1764717048410,-402.01268431,0.00013698,2]
[395695474,1764717048421,-500.0,0.00013698,2]
[395695475,1764717048432,-500.0,0.00013698,2]
[395695477,1764717048441,-500.0,0.00013698,2]
[395695479,1764717048452,-763.94,0.00013698,2]
[395695481,1764717048461,-837.01,0.00013698,2]
[395695483,1764717048471,-500.0,0.00013698,2]
[395695485,1764717048480,-500.0,0.00013698,2]
[395695487,1764717048490,-500.0,0.00013698,2]
[395695489,1764717048499,-500.0,0.00013698,2]
[395695491,1764717048508,-500.0,0.00013698,2]
[395695493,1764717048517,-500.0,0.00013698,2]
[395695495,1764717048527,-500.0,0.00013698,2]
[395695497,1764717048536,-500.0,0.00013698,2]
[395695499,1764717048546,-500.0,0.00013698,2]
[395695501,1764717048555,-799.65,0.00013698,2]
[395695503,1764717048565,-500.0,0.00013698,2]
[395695505,1764717048574,-839.14,0.00013698,2]
[395695508,1764717048585,-500.0,0.00013698,2]
[395695509,1764717048594,-500.0,0.00013698,2]
[395695512,1764717048605,-500.0,0.00013698,2]
[395695514,1764717048615,-504.58,0.00013698,2]
[395695516,1764717048624,-500.0,0.00013698,2]
[395695517,1764717048633,-500.0,0.00013698,2]
[395695520,1764717048643,-500.0,0.00013698,2]
[395695522,1764717048652,-500.0,0.00013698,2]
[395695524,1764717048661,-540.21,0.00013698,2]
[395695525,1764717048671,-288.78675817,0.00013698,2]
[395695528,1764717048681,-1018.43,0.00013698,2]
[395695529,1764717048691,-500.0,0.00013698,2]
[395695531,1764717048700,-658.45,0.00013698,2]
[395695533,1764717048710,-500.0,0.00013698,2]
[395695535,1764717048719,-500.0,0.00013698,2]
[395695537,1764717048728,-501.17430842,0.00013698,2]
[395695539,1764717048738,-500.0,0.00013698,2]
[395695542,1764717048748,-500.0,0.00013698,2]
[395695543,1764717048757,-500.0,0.00013698,2]
[395695546,1764717048766,-561.89,0.00013698,2]
[395695547,1764717048776,-500.0,0.00013698,2]
[395695549,1764717048785,-500.0,0.00013698,2]
[395695551,1764717048794,-339.81146025,0.00013698,2]
[395695553,1764717048803,-921.36,0.00013698,2]
[395695555,1764717048812,-861.58,0.00013698,2]
[395695557,1764717048822,-500.0,0.00013698,2]
[395695559,1764717048832,-734.98,0.00013698,2]
[395695561,1764717048842,-500.0,0.00013698,2]
[395695563,1764717048853,-752.99,0.00013698,2]
[395695565,1764717048864,-500.0,0.00013698,2]
[395695567,1764717048873,-500.0,0.00013698,2]
[395695569,1764717048883,-99.09795992,0.00013698,2]
[395695603,1764717049210,-619.80204008,0.00013698,2]
[395695605,1764717049220,-500.0,0.00013698,2]
[395695607,1764717049230,-667.11,0.00013698,2]
[395695609,1764717049240,-500.0,0.00013698,2]
[395695611,1764717049250,-593.81515433,0.00013698,2]
[395695613,1764717049260,-520.20492045,0.00013698,2]
[395695615,1764717049271,-500.0,0.00013698,2]
[395695617,1764717049282,-500.0,0.00013698,2]
[395695619,1764717049292,-193.96788514,0.00013698,2]
[395695630,1764717049393,-306.03211486,0.00013698,2]
[395695632,1764717049403,-500.0,0.00013698,2]
[395695634,1764717049414,-500.0,0.00013698,2]
[395695636,1764717049423,-151.0,0.00013698,2]
[395695638,1764717049433,-500.0,0.00013698,2]
[395695640,1764717049442,-151.0,0.00013698,2]
[395695642,1764717049453,-201.87627,0.00013698,2]
[395695645,1764717049462,-865.4,0.00013698,2]
[395695647,1764717049472,-288.98669124,0.00013698,2]
[395695648,1764717049480,-500.0,0.00013698,2]
[395695651,1764717049491,-500.0,0.00013698,2]
[395695652,1764717049500,-234.40860749,0.00013698,2]
[395695655,1764717049512,-265.59139251,0.00013698,2]
[395695657,1764717049522,-267.12747681,0.00013698,2]
[395711752,1764717599757,249.40833116,9.481e-05,2]
[395711865,1764717902581,250.0,0.0002,30]
[395711904,1764718232632,-499.0,0.00011798,2]
[395711905,1764718232642,-248.0,0.00011917,2]
[395711906,1764718232651,-250.14415279,0.00012069,2]
[395711907,1764718232679,-179.98211536,0.00012069,2]
[395711908,1764718232688,-992.46145345,0.00012405,2]
[395712038,1764718240942,-1411.90000085,0.00012281,2]
[395712633,1764718247010,-480.7785457,0.00012281,2]
[395712635,1764718247020,-92.67854655,0.00012405,2]
[395712637,1764718247030,-300.0,0.00012405,2]
[395712639,1764718247039,-500.0,0.00012405,2]
[395712641,1764718247048,-500.0,0.00012405,2]
[395712643,1764718247057,-342.87538496,0.00012405,2]
[395712658,1764718247209,-157.12461504,0.00012405,2]
[395712660,1764718247218,-976.0,0.00012405,2]
[395712662,1764718247228,-500.0,0.00012405,2]
[395712664,1764718247238,-487.24511554,0.00012405,2]
[395712666,1764718247247,-500.0,0.00012405,2]
[395712668,1764718247256,-130.32026942,0.00012405,2]
[395731793,1764718535391,2000.0,0.000205,29]
[395731955,1764718772076,236.14227981,9.481e-05,2]
[395731964,1764718800453,290.44950307,9.481e-05,2]
[395732006,1764718862514,250.0,0.0002,30]
[395732283,1764719432069,-258.37088175,9.887e-05,2]
[395732649,1764719438166,-129.39440682,9.887e-05,2]
[395732650,1764719438175,-155.76528857,9.987e-05,2]
[395732651,1764719438185,-232.0,9.987e-05,2]
[395732652,1764719438194,-155.76528857,0.00010088,2]
[395732653,1764719438203,-442.65520868,0.00010242,2]
[395732654,1764719438213,-206.048837,0.00010829,2]
[395732655,1764719438223,-999.0,0.00010959,2]
[395732656,1764719438233,-1499.0071108,0.00011496,2]
[395732657,1764719438243,-301.8292211,0.00012178,2]
[395732658,1764719438252,-300.0,0.0001224,2]
[395732659,1764719438262,-43778.11116818,0.00012241,2]
[395732660,1764719438294,-994.06474417,0.00012241,2]
[395732663,1764719441356,-5227.82408765,0.00012241,2]
[395732664,1764719441365,-522.33314624,0.00012242,2]
[395732665,1764719441375,-3661.45358681,0.00012313,2]
[395732666,1764719441384,-500.0,0.00012403,2]
[395732667,1764719441394,-500.0,0.00012403,2]
[395732668,1764719441403,-500.0,0.00012403,2]
[395732669,1764719441412,-500.0,0.00012403,2]
[395732670,1764719441422,-500.0,0.00012403,2]
[395732671,1764719441432,-500.0,0.00012403,2]
[395732672,1764719441442,-500.0,0.00012403,2]
[395732673,1764719441451,-500.0,0.00012403,2]
[395732674,1764719441461,-500.0,0.00012403,2]
[395732675,1764719441470,-500.0,0.00012403,2]
[395732676,1764719441480,-417.60136396,0.00012403,2]
[395732677,1764719441490,-244.20005546,0.00012403,2]
[395732678,1764719441499,-500.0,0.00012404,2]
[395732679,1764719441508,-500.0,0.00012404,2]
[395732680,1764719441517,-565.06,0.00012404,2]
[395732681,1764719441527,-500.0,0.00012404,2]
[395732682,1764719441535,-500.0,0.00012404,2]
[395732683,1764719441545,-500.0,0.00012404,2]
[395732684,1764719441554,-500.0,0.00012404,2]
[395732685,1764719441564,-500.0,0.00012404,2]
[395732686,1764719441573,-721.62,0.00012404,2]
[395732687,1764719441582,-500.0,0.00012404,2]
[395732689,1764719441591,-500.0,0.00012404,2]
[395732690,1764719441600,-500.0,0.00012404,2]
[395732691,1764719441609,-500.0,0.00012404,2]
[395732692,1764719441619,-500.0,0.00012404,2]
[395732693,1764719441628,-500.0,0.00012404,2]
[395732694,1764719441637,-500.0,0.00012404,2]
[395732695,1764719441646,-500.0,0.00012404,2]
[395732696,1764719441655,-500.0,0.00012404,2]
[395732697,1764719441665,-500.0,0.00012404,2]
[395732698,1764719441674,-109.17219657,0.00012404,2]
[395732699,1764719441685,-390.82780343,0.00012404,2]
[395732700,1764719441695,-107.21219657,0.00012404,2]
[395732998,1764719446085,-977.77,0.00012403,2]
[395733000,1764719446095,-855.44,0.00012404,2]
[395733406,1764719450249,235.35546114,0.000205,29]
[395748226,1764719699204,232.4292964,9.481e-05,2]
[395748299,1764719822048,250.0,0.0002,30]
[395748304,1764719830992,243.98125571,9.442e-05,2]
[395748310,1764719838991,243.98125571,9.442e-05,2]
[395748314,1764719847305,243.98125571,9.442e-05,2]
[395748323,1764719856021,243.98125571,9.442e-05,2]
[395748330,1764719864125,165.15823791,9.442e-05,2]
[395748335,1764719871902,243.98125571,9.442e-05,2]
[395748339,1764719879907,243.98125571,9.442e-05,2]
[395748371,1764719902689,243.98125571,9.442e-05,2]
[395748418,1764719924826,243.98125571,9.442e-05,2]
[395748419,1764719947463,243.98125571,9.442e-05,2]
[395748420,1764719969671,243.98125571,9.442e-05,2]
[395748421,1764719992069,243.98125571,9.442e-05,2]
[395748422,1764720014684,472.98125571,9.442e-05,2]
[395748423,1764720036708,472.98125571,9.442e-05,2]
[395748472,1764720059107,472.98125571,9.442e-05,2]
[395748473,1764720081485,472.98125571,9.442e-05,2]
[395748481,1764720104118,472.98125571,9.442e-05,2]
[395748517,1764720126936,472.98125571,9.442e-05,2]
[395748526,1764720150217,472.98125571,9.442e-05,2]
[395748591,1764720173224,472.98125571,9.442e-05,2]
[395748613,1764720195367,472.98125571,9.442e-05,2]
[395748614,1764720217497,472.98125571,9.442e-05,2]
[395748615,1764720239750,472.98125571,9.442e-05,2]
[395748616,1764720262784,472.98125571,9.442e-05,2]
[395748617,1764720284988,472.98125571,9.442e-05,2]
[395748618,1764720308603,472.98125571,9.442e-05,2]
[395748619,1764720330900,472.98125571,9.442e-05,2]
[395748620,1764720353842,472.98125571,9.442e-05,2]
[395748621,1764720376513,472.98125571,9.442e-05,2]
[395748632,1764720398775,472.98125571,9.442e-05,2]
[395748692,1764720420816,472.98125571,9.442e-05,2]
[395748788,1764720443947,472.98125571,9.442e-05,2]
[395748841,1764720466177,472.98125571,9.442e-05,2]
[395748897,1764720488477,472.98125571,9.442e-05,2]
[395748923,1764720510672,472.98125571,9.442e-05,2]
[395748924,1764720533438,472.98125571,9.442e-05,2]
[395748925,1764720570131,186.72453516,9.442e-05,2]
[395748985,1764720632336,-243.98125571,9.537e-05,2]
[395748986,1764720632345,-212.54181229,9.537e-05,2]
[395748987,1764720632357,-16.45818771,9.537e-05,2]
[395748988,1764720632367,-450.22153963,9.769e-05,2]
[395748989,1764720632376,-236.12,0.0001,2]
[395748990,1764720632390,-236.12,0.0001,2]
[395748991,1764720632400,-236.12,0.0001,2]
[395748992,1764720632409,-236.12,0.0001,2]
[395748993,1764720632420,-236.12,0.0001,2]
[395748994,1764720632431,-300.0,0.00010598,2]
[395748995,1764720632439,-1081.60180344,0.00010599,2]
[395749180,1764720641096,-499.0,0.00010493,2]
[395749182,1764720641105,-48918.39819656,0.00010599,2]
[395749184,1764720641115,-304.87621721,0.00010599,2]
[395749186,1764720641126,-548.22841378,0.00010599,2]
[395749188,1764720641135,-420.40510527,0.00010599,2]
[395749190,1764720641145,-300.0,0.0001081,2]
[395749192,1764720641154,-300.0,0.0001081,2]
[395749194,1764720641163,-300.0,0.0001081,2]
[395749196,1764720641173,-300.0,0.0001081,2]
[395749198,1764720641183,-300.0,0.0001081,2]
[395749200,1764720641193,-300.0,0.0001081,2]
[395749202,1764720641203,-300.0,0.0001081,2]
[395749204,1764720641212,-300.0,0.0001081,2]
[395749206,1764720641222,-300.0,0.0001081,2]
[395749208,1764720641232,-300.0,0.0001081,2]
[395749210,1764720641242,-300.0,0.0001081,2]
[395749212,1764720641252,-300.0,0.0001081,2]
[395749214,1764720641261,-300.0,0.0001081,2]
[395749216,1764720641270,-300.0,0.0001081,2]
[395749218,1764720641280,-300.0,0.0001081,2]
[395749220,1764720641289,-420.0,0.00011651,2]
[395749222,1764720641299,-531.26141677,0.00011769,2]
[395749224,1764720641308,-156.50291546,0.00011909,2]
[395749226,1764720641317,-244.46921823,0.00012013,2]
[395749228,1764720641327,-2033.817451,0.0001222,2]
[395749230,1764720641337,-267.80219672,0.00012303,2]
[395749232,1764720641347,-164.31862293,0.00012303,2]
[395749234,1764720641356,-164.31862291,0.00012395,2]
[395749236,1764720641366,-285.11916303,0.00012396,2]
[395749238,1764720641380,-151.0,0.000124,2]
[395749240,1764720641400,-151.0,0.000124,2]
[395749242,1764720641415,-151.0,0.000124,2]
[395749244,1764720641425,-222.42537822,0.00012402,2]
[395749246,1764720641435,-500.0,0.00012402,2]
[395749248,1764720641444,-500.0,0.00012402,2]
[395749250,1764720641454,-500.0,0.00012402,2]
[395749252,1764720641463,-500.0,0.00012402,2]
[395749254,1764720641472,-621.28981422,0.00012402,2]
[395749256,1764720641483,-500.0,0.00012402,2]
[395749258,1764720641492,-500.0,0.00012402,2]
[395749260,1764720641502,-500.0,0.00012402,2]
[395749262,1764720641511,-500.0,0.00012402,2]
[395749264,1764720641521,-500.0,0.00012403,2]
[395749266,1764720641530,-500.0,0.00012403,2]
[395749268,1764720641539,-151.0,0.00012403,2]
[395749270,1764720641549,-152.460499,0.00012403,2]
[395749272,1764720641559,-500.0,0.00012403,2]
[395749274,1764720641568,-500.0,0.00012403,2]
[395749276,1764720641578,-500.0,0.00012403,2]
[395749278,1764720641588,-151.0,0.00012403,2]
[395749280,1764720641597,-879.45,0.00012403,2]
[395749282,1764720641607,-500.0,0.00012403,2]
[395749284,1764720641616,-500.0,0.00012403,2]
[395749286,1764720641625,-460.46118186,0.00012403,2]
[395749288,1764720641635,-500.0,0.00012403,2]
[395749290,1764720641644,-762.74,0.00012403,2]
[395749292,1764720641653,-500.0,0.00012403,2]
[395749294,1764720641662,-500.0,0.00012403,2]
[395749296,1764720641671,-500.0,0.00012403,2]
[395749298,1764720641681,-325.61384056,0.00012403,2]
[395749300,1764720641691,-396.13053107,0.00012403,2]
[395749302,1764720641701,-732.12,0.00012403,2]
[395749304,1764720641710,-618.06,0.00012403,2]
[395749306,1764720641719,-501.25389386,0.00012403,2]
[395749308,1764720641729,-500.0,0.00012403,2]
[395749310,1764720641738,-500.0,0.00012403,2]
[395749312,1764720641748,-500.0,0.00012403,2]
[395749314,1764720641757,-500.0,0.00012403,2]
[395749316,1764720641767,-500.0,0.00012403,2]
[395749318,1764720641776,-795.15,0.00012403,2]
[395749320,1764720641786,-500.0,0.00012403,2]
[395749322,1764720641796,-527.01,0.00012403,2]
[395749324,1764720641805,-500.0,0.00012403,2]
[395749326,1764720641814,-500.0,0.00012403,2]
[395749328,1764720641824,-500.0,0.00012403,2]
[395749330,1764720641833,-500.0,0.00012403,2]
[395749332,1764720641843,-500.0,0.00012403,2]
[395749334,1764720641852,-500.0,0.00012403,2]
[395749336,1764720641861,-500.0,0.00012403,2]
[395749338,1764720641870,-500.0,0.00012403,2]
[395749340,1764720641879,-500.0,0.00012403,2]
[395749342,1764720641888,-500.0,0.00012403,2]
[395749344,1764720641899,-500.0,0.00012403,2]
[395749346,1764720641909,-803.99,0.00012403,2]
[395749348,1764720641918,-1870.84,0.00012403,2]
[395749350,1764720641928,-500.0,0.00012403,2]
[395749352,1764720641938,-500.0,0.00012403,2]
[395749354,1764720641947,-500.0,0.00012403,2]
[395749356,1764720641956,-500.0,0.00012403,2]
[395749358,1764720641965,-500.0,0.00012403,2]
[395749360,1764720641974,-500.0,0.00012403,2]
[395749362,1764720641984,-500.0,0.00012403,2]
[395749364,1764720641993,-1604.91,0.00012403,2]
[395749366,1764720642003,-564.82,0.00012403,2]
[395749368,1764720642012,-500.0,0.00012403,2]
[395749370,1764720642021,-500.0,0.00012403,2]
[395749372,1764720642030,-151.0,0.00012403,2]
[395749374,1764720642040,-151.0,0.00012403,2]
[395749376,1764720642049,-151.0,0.00012403,2]
[395749378,1764720642058,-151.0,0.00012403,2]
[395749380,1764720642067,-526.87,0.00012403,2]
[395749381,1764720642075,-294.488097,0.00012403,2]
[395749384,1764720642085,-500.0,0.00012403,2]
[395749386,1764720642095,-478.088634,0.00012403,2]
[395749388,1764720642104,-478.088634,0.00012403,2]
[395749390,1764720642114,-478.088634,0.00012403,2]
[395749391,1764720642123,-500.0,0.00012403,2]
[395749393,1764720642132,-478.088634,0.00012403,2]
[395749395,1764720642142,-500.0,0.00012403,2]
[395749397,1764720642151,-478.088634,0.00012403,2]
[395749399,1764720642163,-478.088634,0.00012403,2]
[395749401,1764720642173,-478.088634,0.00012403,2]
[395749403,1764720642183,-478.088634,0.00012403,2]
[395749405,1764720642193,-478.088634,0.00012403,2]
[395749407,1764720642203,-478.088634,0.00012403,2]
[395749410,1764720642212,-478.088634,0.00012403,2]
[395749411,1764720642221,-478.088634,0.00012403,2]
[395749413,1764720642232,-707.26,0.00012403,2]
[395749415,1764720642241,-500.0,0.00012403,2]
[395749417,1764720642251,-500.0,0.00012403,2]
[395749419,1764720642260,-500.0,0.00012403,2]
[395749421,1764720642269,-719.68,0.00012403,2]
[395749423,1764720642278,-555.14,0.00012403,2]
[395749425,1764720642287,-694.73,0.00012403,2]
[395749427,1764720642297,-500.0,0.00012403,2]
[395749429,1764720642306,-594.76,0.00012403,2]
[395749431,1764720642316,-500.0,0.00012403,2]
[395749433,1764720642325,-500.0,0.00012403,2]
[395749435,1764720642334,-500.0,0.00012403,2]
[395749437,1764720642343,-151.0,0.00012403,2]
[395749439,1764720642352,-500.0,0.00012403,2]
[395749441,1764720642361,-500.0,0.00012403,2]
[395749443,1764720642372,-668.18,0.00012403,2]
[395749445,1764720642382,-500.0,0.00012403,2]
[395749447,1764720642392,-500.0,0.00012403,2]
[395749449,1764720642405,-500.0,0.00012403,2]
[395749451,1764720642414,-500.0,0.00012403,2]
[395749453,1764720642424,-500.0,0.00012403,2]
[395749455,1764720642434,-500.0,0.00012403,2]
[395749457,1764720642443,-151.0,0.00012403,2]
[395749459,1764720642452,-151.0,0.00012403,2]
[395749462,1764720642462,-151.0,0.00012403,2]
[395749464,1764720642474,-151.0,0.00012403,2]
[395749465,1764720642485,-151.0,0.00012403,2]
[395749467,1764720642494,-151.0,0.00012403,2]
[395749469,1764720642503,-151.0,0.00012403,2]
[395749472,1764720642514,-151.0,0.00012403,2]
[395749473,1764720642524,-500.0,0.00012403,2]
[395749475,1764720642535,-500.0,0.00012403,2]
[395749478,1764720642544,-500.0,0.00012403,2]
[395749480,1764720642553,-500.0,0.00012403,2]
[395749481,1764720642562,-500.0,0.00012403,2]
[395749483,1764720642571,-500.0,0.00012403,2]
[395749486,1764720642581,-1983.31,0.00012403,2]
[395749488,1764720642590,-500.0,0.00012403,2]
[395749490,1764720642600,-500.0,0.00012403,2]
[395749491,1764720642609,-729.77,0.00012403,2]
[395749493,1764720642618,-732.84,0.00012403,2]
[395749496,1764720642628,-500.0,0.00012403,2]
[395749497,1764720642639,-500.0,0.00012403,2]
[395749500,1764720642649,-500.0,0.00012403,2]
[395749501,1764720642659,-500.0,0.00012403,2]
[395749504,1764720642669,-500.0,0.00012403,2]
[395749505,1764720642678,-500.0,0.00012403,2]
[395749507,1764720642688,-500.0,0.00012403,2]
[395749510,1764720642697,-1446.79,0.00012403,2]
[395749512,1764720642707,-1364.23,0.00012403,2]
[395749514,1764720642716,-500.0,0.00012403,2]
[395749516,1764720642726,-632.29,0.00012403,2]
[395749519,1764720642737,-151.0,0.00012403,2]
[395749521,1764720642746,-876.59,0.00012403,2]
[395749522,1764720642755,-153.20251779,0.00012403,2]
[395749524,1764720642764,-500.0,0.00012403,2]
[395749526,1764720642774,-500.0,0.00012403,2]
[395749528,1764720642783,-828.13,0.00012403,2]
[395749531,1764720642793,-500.0,0.00012403,2]
[395749532,1764720642802,-500.0,0.00012403,2]
[395749534,1764720642811,-1186.27,0.00012403,2]
[395749536,1764720642820,-500.0,0.00012403,2]
[395749538,1764720642830,-500.0,0.00012403,2]
[395749541,1764720642840,-1070.09,0.00012403,2]
[395749542,1764720642849,-500.0,0.00012403,2]
[395749544,1764720642858,-715.6,0.00012403,2]
[395749547,1764720642868,-1036.08,0.00012403,2]
[395749548,1764720642877,-500.0,0.00012403,2]
[395749550,1764720642886,-500.0,0.00012403,2]
[395749552,1764720642896,-415.59445898,0.00012403,2]
[395749554,1764720642905,-500.0,0.00012403,2]
[395749556,1764720642915,-500.0,0.00012403,2]
[395749559,1764720642924,-829.96,0.00012403,2]
[395749561,1764720642933,-500.0,0.00012403,2]
[395749563,1764720642942,-500.0,0.00012403,2]
[395749565,1764720642952,-239.29897172,0.00012403,2]
[395749567,1764720642961,-500.0,0.00012403,2]
[395749569,1764720642970,-500.0,0.00012403,2]
[395749571,1764720642980,-500.0,0.00012403,2]
[395749573,1764720642989,-1234.66,0.00012403,2]
[395749575,1764720642999,-500.0,0.00012403,2]
[395749578,1764720643008,-500.91399541,0.00012403,2]
[395749580,1764720643019,-500.0,0.00012403,2]
[395749582,1764720643029,-500.0,0.00012403,2]
[395749584,1764720643038,-965.42,0.00012403,2]
[395749586,1764720643047,-500.0,0.00012403,2]
[395749588,1764720643057,-500.0,0.00012403,2]
[395749590,1764720643066,-941.35,0.00012403,2]
[395749592,1764720643079,-500.0,0.00012403,2]
[395749594,1764720643088,-1272.68,0.00012403,2]
[395749596,1764720643097,-500.0,0.00012403,2]
[395749598,1764720643107,-500.0,0.00012403,2]
[395749600,1764720643116,-643.02,0.00012403,2]
[395749602,1764720643126,-500.0,0.00012403,2]
[395749604,1764720643135,-500.0,0.00012403,2]
[395749606,1764720643144,-500.0,0.00012403,2]
[395749608,1764720643154,-500.0,0.00012403,2]
[395749610,1764720643163,-540.96,0.00012403,2]
[395749612,1764720643174,-500.0,0.00012403,2]
[395749614,1764720643183,-511.34,0.00012403,2]
[395749616,1764720643193,-500.0,0.00012403,2]
[395749618,1764720643202,-167.06,0.00012403,2]
[395749620,1764720643212,-500.0,0.00012403,2]
[395749622,1764720643222,-500.0,0.00012403,2]
[395749624,1764720643233,-500.0,0.00012403,2]
[395749626,1764720643243,-500.0,0.00012403,2]
[395749628,1764720643252,-500.0,0.00012403,2]
[395749630,1764720643262,-768.82,0.00012403,2]
[395749632,1764720643272,-500.0,0.00012403,2]
[395749634,1764720643282,-500.0,0.00012403,2]
[395749636,1764720643291,-500.0,0.00012403,2]
[395749638,1764720643300,-500.0,0.00012403,2]
[395749640,1764720643310,-560.87856604,0.00012403,2]
[395749642,1764720643319,-500.0,0.00012403,2]
[395749644,1764720643328,-500.0,0.00012403,2]
[395749646,1764720643337,-500.0,0.00012403,2]
[395749648,1764720643347,-500.0,0.00012403,2]
[395749650,1764720643356,-925.08,0.00012403,2]
[395749652,1764720643365,-507.76,0.00012403,2]
[395749654,1764720643375,-987.62,0.00012403,2]
[395749656,1764720643384,-581.03,0.00012403,2]
[395749658,1764720643398,-500.0,0.00012403,2]
[395749660,1764720643408,-500.0,0.00012403,2]
[395749662,1764720643417,-693.01,0.00012403,2]
[395749664,1764720643426,-500.0,0.00012403,2]
[395749666,1764720643435,-500.0,0.00012403,2]
[395749668,1764720643445,-500.0,0.00012403,2]
[395749670,1764720643454,-500.0,0.00012403,2]
[395749672,1764720643463,-500.0,0.00012403,2]
[395749674,1764720643472,-1611.79,0.00012403,2]
[395749676,1764720643481,-1314.88,0.00012403,2]
[395749678,1764720643490,-2086.09,0.00012403,2]
[395749680,1764720643500,-326.4796838,0.00012403,2]
[395749682,1764720643509,-500.0,0.00012403,2]
[395749684,1764720643519,-500.0,0.00012403,2]
[395749686,1764720643528,-500.0,0.00012403,2]
[395749688,1764720643538,-500.0,0.00012403,2]
[395749690,1764720643547,-500.0,0.00012403,2]
[395749692,1764720643556,-500.0,0.00012403,2]
[395749694,1764720643566,-500.0,0.00012403,2]
[395749696,1764720643575,-1082.95,0.00012403,2]
[395749719,1764720643778,-500.0,0.00012403,2]
[395749721,1764720643790,-500.0,0.00012403,2]
[395749723,1764720643799,-500.0,0.00012403,2]
[395749725,1764720643809,-500.0,0.00012403,2]
[395749727,1764720643819,-904.58,0.00012403,2]
[395749729,1764720643828,-500.0,0.00012403,2]
[395749731,1764720643838,-193.129984,0.00012403,2]
[395749733,1764720643848,-422.78533992,0.00012403,2]
[395749735,1764720643858,-500.0,0.00012403,2]
[395749737,1764720643867,-399.425855,0.00012403,2]
[395749739,1764720643876,-500.0,0.00012403,2]